Workbook

Sheet Лист1
A1: гидравлический расчет системы отопления
A6: № уч | B6: Q вт | C6: G кг/ч | D6: L м | E6: D мм | F6: V м/с | G6: R, Па/м | H6: Rl, Па | I6: Рд, Па | J6: ∑ξ | K6: Z, Па | L6: RL+Z, Па | M6: ∑RL+Z, Па
A7: 1 | B7: =38959+38568 -> 77527 | C7: =B7*0.86/(95-70) -> 2666.9288 | D7: 28 | E7: 70 | F7: 0.196 | G7: 29.43 | H7: =D7*G7 -> 824.04 | I7: 17.75 | J7: 9.2 | K7: =J7*I7 -> 163.3 | L7: =H7+K7 -> 987.34 | M7: =L7 -> 987.34
A8: 2 | B8: =38959 -> 38959 | C8: =B8*0.86/(95-70) -> 1340.1896 | D8: =5.5+1.5 -> 7 | E8: 50 | F8: 0.171 | G8: 8 | H8: =D8*G8 -> 56 | I8: 14.24 | J8: 9 | K8: =J8*I8 -> 128.16 | L8: =H8+K8 -> 184.16 | M8: =M7+L8 -> 1171.5
A9: 3 | B9: =B8-4653 -> 34306 | C9: 1180.1264 | D9: =3.3*5+1+0.6+1.7 -> 19.8 | E9: 40 | F9: 0.252 | G9: 22 | H9: 435.6 | I9: 30.44 | J9: 8.7 | K9: 264.828 | L9: 700.428 | M9: =M8+L9 -> 1871.928
A10: 4 | B10: =B9-2647 -> 31659 | C10: 1089.0696 | D10: =3.3*5+1+0.6+5.8 -> 23.9 | E10: 40 | F10: 0.233 | G10: 19 | H10: 454.1 | I10: 26.48 | J10: 8.7 | K10: 230.376 | L10: 684.476 | M10: =M9+L10 -> 2556.404
A11: 5 | B11: =B10-4852 -> 26807 | C11: 922.1608 | D11: =3.3*5+1+0.6+5.1 -> 23.2 | E11: 40 | F11: 0.197 | G11: 14 | H11: 324.8 | I11: 17.75 | J11: 8.7 | K11: 154.425 | L11: 479.225 | M11: =M10+L11 -> 3035.629
A12: 6 | B12: =B11-4894 -> 21913 | C12: 753.8072 | D12: =5*3.3+1+0.6+5.6 -> 23.7 | E12: 32 | F12: 0.21 | G12: 19 | H12: 450.3 | I12: 21.57 | J12: 8.7 | K12: 187.659 | L12: 637.959 | M12: 3673.588
A13: 7 | B13: =B12-2494 -> 19419 | C13: 668.0136 | D13: =5*3.3+1+0.6+0.9 -> 19 | E13: 32 | F13: 0.186 | G13: 15 | H13: 285 | I13: 15.89 | J13: 8.7 | K13: 138.243 | L13: 423.243 | M13: 4096.831
A14: 8 | B14: =B13-2494 -> 16925 | C14: 582.22 | D14: =5*3.3+1+0.6+5.2 -> 23.3 | E14: 32 | F14: 0.162 | G14: 12 | H14: 279.6 | I14: 38.25 | J14: 8.7 | K14: 332.775 | L14: 612.375 | M14: 4709.206
A15: 9 | B15: =B14-4893 -> 12032 | C15: 413.9008 | D15: =5*3.3+1+0.6+5.7 -> 23.8 | E15: 25 | F15: 0.202 | G15: 26 | H15: 618.8 | I15: 19.61 | J15: 8.7 | K15: 170.607 | L15: 789.407 | M15: 5498.613
A16: 10 | B16: =B15-4852 -> 7180 | C16: 246.992 | D16: =5*3.3+1+0.6+5.8 -> 23.9 | E16: 25 | F16: 0.121 | G16: 9.5 | H16: 227.05 | I16: 7.06 | J16: 9.2 | K16: 64.952 | L16: 292.002 | M16: 5790.615
A17: 11 | B17: =B16-2647 -> 4533 | C17: 155.9352 | D17: =3.3*5+1+3.2 -> 20.7 | E17: 20 | F17: 0.124 | G17: 14 | H17: 289.8 | I17: 7.06 | J17: 5.2 | K17: 36.712 | L17: 326.512 | M17: 6117.127
A18: 12 | B18: =B17-[1]Лист2!D87 -> 3508.094982 | C18: 120.6784674 | D18: =3.3*5-(3.3*4) -> 3.3 | E18: 15 | F18: 0.176 | G18: 40 | H18: 132 | I18: 14.24 | J18: 5.4 | K18: 76.896 | L18: 208.896 | M18: 6326.023
A19: 13 | B19: =B18-[1]Лист2!D88 -> 2672.081964 | C19: 91.91961955 | D19: 3.3 | E19: 15 | F19: 0.134 | G19: 24 | H19: 79.2 | I19: 8.34 | J19: 5.4 | K19: 45.036 | L19: 124.236 | M19: 6450.259
A20: 14 | B20: =B19-[1]Лист2!D89 -> 1836.081964 | C20: =B20*0.86/(95-70) -> 63.16121955 | D20: =3.3 -> 3.3 | E20: 15 | F20: 0.0922 | G20: 12 | H20: 39.6 | I20: 4.02 | J20: 5.4 | K20: 21.708 | L20: =H20+K20 -> 61.308 | M20: =M19+L20 -> 6511.567
A21: 15 | B21: =B20-[1]Лист2!D89 -> 1000.081964 | C21: =B21*0.86/(95-70) -> 34.40281955 | D21: 1.1 | E21: 15 | F21: 0.05 | G21: 3 | H21: =D21*G21 -> 3.3 | I21: 1.23 | J21: 5.4 | K21: =J21*I21 -> 6.642 | L21: =H21+K21 -> 9.942 | M21: =M20+L21 -> 6521.509
A22: 16 | B22: 4528 | C22: =B22*0.86/(95-70) -> 155.7632 | D22: =3.3*5+1.6+4.3+1 -> 23.4 | E22: 20 | F22: 0.124 | G22: 14 | H22: =D22*G22 -> 327.6 | I22: 7.06 | J22: 5.4 | K22: =J22*I22 -> 38.124 | L22: =H22+K22 -> 365.724 | M22: =L22 -> 365.724
A23: 17 | B23: =B22+4472 -> 9000 | C23: =B23*0.86/(95-70) -> 309.6 | D23: =3.3*5+5.3+1 -> 22.8 | E23: 25 | F23: 0.151 | G23: 16 | H23: =D23*G23 -> 364.8 | I23: 11.08 | J23: 5.4 | K23: =J23*I23 -> 59.832 | L23: =H23+K23 -> 424.632 | M23: =M22+L23 -> 790.356
A24: 18 | B24: =B23+1278 -> 10278 | C24: =B24*0.86/(95-70) -> 353.5632 | D24: =3.3*5+3+1 -> 20.5 | E24: 25 | F24: 0.173 | G24: 20 | H24: =D24*G24 -> 410 | I24: 14.24 | J24: 9.2 | K24: =J24*I24 -> 131.008 | L24: =H24+K24 -> 541.008 | M24: =M23+L24 -> 1331.364
A25: 19 | B25: =B24+5635 -> 15913 | C25: 547.4072 | D25: =3.3*5+5.7+1 -> 23.2 | E25: 32 | F25: 0.152 | G25: 12 | H25: 278.4 | I25: 11.08 | J25: 9.2 | K25: 101.936 | L25: 380.336 | M25: =M24+L25 -> 1711.7
A26: 20 | B26: =B25+2809 -> 18722 | C26: 644.0368 | D26: =3.3*5+3+1 -> 20.5 | E26: 32 | F26: 0.179 | G26: 15 | H26: 307.5 | I26: 14.24 | J26: 9.2 | K26: 131.008 | L26: 438.508 | M26: 2150.208
A27: 21 | B27: =B26+2809 -> 21531 | C27: 740.6664 | D27: =3.3*5+3.5+1 -> 21 | E27: 32 | F27: 0.2 | G27: 19 | H27: 399 | I27: 19.61 | J27: =1.6*5+1.1+1.1 -> 10.2 | K27: 200.022 | L27: 599.022 | M27: 2749.23
A28: 22 | B28: =B27+5443 -> 26974 | C28: 927.9056 | D28: =3.3*5+5.1+1 -> 22.6 | E28: 40 | F28: 0.198 | G28: 15 | H28: 339 | I28: 17.75 | J28: =1.6*5+1.1+1.1 -> 10.2 | K28: 181.05 | L28: 520.05 | M28: 3269.28
A29: 23 | B29: =B28+1278 -> 28252 | C29: 971.8688 | D29: =3.3*5+3.2+1 -> 20.7 | E29: 40 | F29: 0.208 | G29: 16 | H29: 331.2 | I29: 19.61 | J29: =1.6*5+1.1+1.1 -> 10.2 | K29: 200.022 | L29: 531.222 | M29: 3800.502
A30: 24 | B30: =B29+5593 -> 33845 | C30: 1164.268 | D30: =3.3*5+4.1+2.5+1.6 -> 24.7 | E30: 40 | F30: 0.249 | G30: 24 | H30: 592.8 | I30: 28.44 | J30: =1.6*5+0.6+0.6 -> 9.2 | K30: 261.648 | L30: 854.448 | M30: 4654.95
A31: 25 | B31: =B30+4723 -> 38568 | C31: =B31*0.86/(95-70) -> 1326.7392 | D31: =3.3*5+4.1+2.5+1.6 -> 24.7 | E31: 50 | F31: 0.169 | G31: 8 | H31: =D31*G31 -> 197.6 | I31: 12.56 | J31: 10.2 | K31: =J31*I31 -> 128.112 | L31: =H31+K31 -> 325.712 | M31: =M30+L31 -> 4980.662 | O31: =(M21-M31)/M21 -> 0.2362715439

Sheet Лист2

Sheet Лист3
